Cogmind - Beta 13 *** ADVENTURER MODE // 2024.07.21 @ 09:53:48 Player: Jefffff Result: Destroyed by exploding Power Conduit Performance ------------- Evolutions (5) 2500 Regions Visited (4) 800 Robots Destroyed (77) 385 Value Destroyed (2950) 2950 Prototype IDs (16) 320 Alien Tech Used (0) 0 Bonus (244) 244 TOTAL SCORE: 7199 Bonus ------- High Alert Combat Kills 127 Follower Combat Kills 117 Cogmind --------- Core Integrity 0/1000 Matter 204/300 Energy 0/450 System Corruption 15% Temperature Cool (48) Movement Walking (260) Ox2 Location -5/Factory Parts ------- > --- POWER (2) -------- (None) > --- PROPULSION (4) --- Armored-Carbon Exoskeleton > --- UTILITY (9) ------ Scrap Engine Large Storage Unit Energy Well Improved Target Analyzer Improved Propulsion Shielding Improved Component Analysis Suite > --- WEAPON (2) ------- Cooled Pulse Rifle Enhanced Gauss Cannon > --- INVENTORY (15) --- KE Penetrator Improved Remote Datajack Multitool Peak State ------------ > --- POWER ------------ Micro Fission Core Light Antimatter Reactor > --- PROPULSION ------- Enhanced Armored Leg Enhanced Armored Leg Enhanced Armored Leg Enhanced Armored Leg > --- UTILITY ---------- Armored Scrap Engine Improved Coolant Injector Large Storage Unit Energy Well Improved Targeting Computer Improved Targeting Computer Phase Shifter Improved Thermal Shield Rainbow Chip > --- WEAPON ----------- Plasma Cannon Gauss Rifle > --- INVENTORY -------- Improved Ion Engine Light Angular Momentum Engine Light Fission Core Spiked Treads Carbon-fiber Leg Recoil Nullifier Improved Weapon Cycler Improved Component Analysis Suite Makeshift System Restoration Module Disruptor Cannon Improved Remote Datajack Multitool [Rating: 112] Favorites ----------- Power Light Ion Engine Engine Light Ion Engine Power Core Micro Nuclear Core Reactor Light Antimatter Reactor Propulsion Improved Treads Treads Improved Treads Leg Enhanced Armored Leg Wheel Subdweller Monowheel Utility Large Storage Unit Device Armored Scrap Engine Storage Large Storage Unit Processor Improved Targeting Computer Protection Scrap Shield Weapon Light Cannon Energy Gun Riot Gun Energy Cannon Plasma Cannon Ballistic Gun Assault Rifle Ballistic Cannon Light Cannon Launcher Rocket Launcher Special Weapon Multitool Impact Weapon Great Maul Slashing Weapon Ripper Build | -11 -10 -10 -7 -5 ------- Run | Yrd Mat Sub Rec Fac Slots Evolved 10 | . . . . 10 Power 1 | . . . . 1 Propulsion 2 | . . . . 2 Utility 7 | . . . . 7 Weapon . | . . . . . Parts Attached 78 | 6 8 16 5 43 Power 12 | 1 1 2 1 7 Engine 6 | 1 1 2 . 2 Core 5 | . . . 1 4 Reactor 1 | . . . . 1 Propulsion 21 | 2 3 4 2 10 Treads 9 | . 3 1 2 3 Leg 7 | . . . . 7 Wheel 5 | 2 . 3 . . Hover . | . . . . . Flight . | . . . . . Utility 21 | 1 2 2 . 16 Device 9 | . . . . 9 Storage 3 | 1 1 . . 1 Processor 5 | . 1 2 . 2 Hackware . | . . . . . Protection 4 | . . . . 4 Artifact . | . . . . . Weapon 24 | 2 2 8 2 10 Energy Gun 3 | . . 1 . 2 Energy Cannon 3 | . . 1 . 2 Ballistic Gun 6 | 2 1 1 . 2 Ballistic Cannon 4 | . 1 2 . 1 Launcher 1 | . . 1 . . Special Weapon 2 | . . 1 1 . Impact Weapon 4 | . . . 1 3 Slashing Weapon 1 | . . 1 . . Piercing Weapon . | . . . . . Special Melee Weapon . | . . . . . Unidentified Prototypes 2 | . . . . 2 Parts Lost 40 | . . 6 . 34 Power 7 | . . 1 . 6 Propulsion 10 | . . 2 . 8 Utility 12 | . . . . 12 Weapon 11 | . . 3 . 8 Highest Loss Streak 16 | . . 3 . 16 To Critical Strikes 1 | . . . . 1 Average Slot Usage (%) 91 | . 99 94 97 81 Engine 8 | . 13 11 10 3 Core 2 | . . . 7 4 Treads 15 | . 25 18 20 4 Leg 4 | . . . . 11 Wheel 4 | . 1 7 10 2 Device 4 | . . . . 13 Storage 12 | . 14 13 10 10 Processor 14 | . 13 14 20 12 Protection 1 | . . . . 5 Energy Gun 1 | . . 3 . 1 Energy Cannon 1 | . . . . 3 Ballistic Gun 4 | . 14 2 2 2 Ballistic Cannon 7 | . 13 11 7 . Special Weapon 1 | . . 1 7 . Slashing Weapon 2 | . . 7 . . Naked Turns . | . . . . . Heaviest Build 76 | 12 27 34 36 76 Greatest Support 80 | 26 46 46 43 80 Greatest Overweight (x) 22 | . . 1 . 22 Average Overweight (x) . | . . . . . Largest Inventory Capacity 15 | 8 15 15 15 15 Average Capacity 13 | 6 9 15 15 15 Most Carried 15 | 4 15 15 15 15 Average Carried 11 | . 8 14 14 10 Final Capacity 15 | 8 15 15 15 15 Final Carried 15 | . 15 15 15 3 Scrap Engine Consumption 69 | . . . . 69 Constructs Created 12 | . . . . 12 Constructs Modified 4 | . . . . 4 Class Distribution -------------------- 70% | Mutant 16% | Derelict-Mutant 7% | Scavenger-Mutant 5% | Gunner Dominant Class ---------------- Mutant | -10/Materials Mutant | -10/Subcaves Derelict-Mutant | -7/Recycling Mutant | -5/Factory Resources | -11 -10 -10 -7 -5 ----------- Run | Yrd Mat Sub Rec Fac Matter Collected 1700 | 209 270 363 169 689 Remotely . | . . . . . Salvage Created 3014 | . 328 453 . 2233 Parts 172 | . 22 32 . 118 Haulers Intercepted 3 | . 2 . . 1 Recyclers Shooed 5 | . . . . 5 Parts Field Recycled . | . . . . . Retrieved Matter . | . . . . . Parts Self-Destructed 12 | . . 12 . . Prevented . | . . . . . Kills | -11 -10 -10 -7 -5 ------- Run | Yrd Mat Sub Rec Fac Combat Hostiles Destroyed 58 | . 8 16 . 34 Melee 11 | . . 6 . 5 Guns 19 | . 3 1 . 15 Cannons 17 | . 5 4 . 8 AOE 5 | . . 5 . . Classes Destroyed 13 | . 4 2 . 7 Worker 2 | . . . . 2 Builder 5 | . . . . 5 Hauler 3 | . 2 . . 1 Recycler 1 | . . . . 1 Turret 2 | . . 2 . . Watcher 6 | . 3 . . 3 Swarmer 12 | . 3 4 . 5 Grunt 16 | . 5 . . 11 Protector 1 | . . . . 1 Sentry 1 | . . . . 1 Hunter 6 | . . . . 6 Programmer 10 | . . . . 10 Subdweller 12 | . . 12 . . Best Kill Streak 6 | . 3 6 . 6 Combat Bots Only 4 | . 3 4 . 4 Max Kills in Single Turn 3 | . 1 3 . 2 Gunslinging . | . . . . . Exploded 3 | . . 3 . . Melee 1 | . . 1 . 1 Uniques/NPCs Destroyed . | . . . . . Combat | -11 -10 -10 -7 -5 -------- Run | Yrd Mat Sub Rec Fac Hostile Shots Fired 769 | . 44 103 2 620 Missed 180 | . 12 27 . 141 Damage Taken 8111 | . 304 992 23 6792 Core 1249 | . 52 183 12 1002 Absorbed by Shields 319 | . . . . 319 Redirected to Shielding 220 | . . . . 220 Ignored by Resistances 2543 | . 92 261 6 2184 Regen/Repaired (Parts) 715 | . 74 . . 641 Core Remaining (%) 50 | 100 . . 1 . Volleys Fired 236 | . 36 31 . 169 Largest 3 | . 2 3 . 2 Hottest 150 | . 55 150 . 143 Shots Fired 397 | . 72 58 . 267 Gun 219 | . 37 27 . 155 Cannon 169 | . 35 22 . 112 Launcher 5 | . . 5 . . Special 4 | . . 4 . . Kinetic 195 | . 72 31 . 92 Thermal 118 | . . 4 . 114 Explosive 5 | . . 5 . . Electromagnetic 79 | . . 18 . 61 Robot Hit Streak 35 | . 35 24 . 33 Robot Miss Streak 2 | . 2 2 . 2 Penetration Max 1 | . . . . 1 Secondary Targets . | . . . . . Shots Hit Robots 365 | . 62 48 . 255 Core Hits 132 | . 20 26 . 86 Critical Kills 4 | . . . . 4 Critical Parts Destroyed 4 | . . . . 4 Critical Strikes 21 | . 5 . . 16 Burn 2 | . . . . 2 Blast 8 | . 5 . . 3 Corrupt 3 | . . . . 3 Smash 8 | . . . . 8 Melee Attacks 45 | . . 25 . 20 Impact 20 | . . . . 20 Slashing 25 | . . 25 . . Piercing . | . . . . . Sneak Attacks 1 | . . . . 1 Combat Hostiles . | . . . . . Follow-up Attacks 1 | . . . . 1 Damage Inflicted 9030 | . 887 1487 13 6643 Guns 3560 | . 409 345 . 2806 Cannons 3170 | . 474 262 . 2434 Explosions 809 | . . 348 . 461 Melee 1421 | . . 484 . 937 Ramming 22 | . 4 . 13 5 Kinetic 3050 | . 883 405 . 1762 Thermal 3082 | . . 48 . 3034 Explosive 447 | . . 348 . 99 Electromagnetic 1008 | . . 202 . 806 Impact 937 | . . . . 937 Slashing 484 | . . 484 . . Piercing . | . . . . . Highest Corruption 15 | . 1 1 2 15 Average Corruption 2 | . 1 1 1 5 Corruption Purged 5 | . . . . 5 Corruption Blocked . | . . . . . Effects 65 | . 2 16 3 44 Message Errors 16 | . . 3 1 12 Matter Fused 14 | . 1 2 . 11 Heat Flow Errors 13 | . 1 4 1 7 Energy Discharges 8 | . . 3 . 5 Parts Rejected 2 | . . . . 2 Data Loss (minor) 5 | . . 2 . 3 Data Loss (major) 3 | . . 1 1 1 Misfires 2 | . . 1 . 1 Weapon Failures 2 | . . . . 2 Overload Shots . | . . . . . Overflow Damage 542 | . 15 23 . 504 Projectiles 77 | . 15 23 . 39 Explosions 110 | . . . . 110 Melee 355 | . . . . 355 Knockbacks 11 | . 3 1 . 7 Impact 5 | . . . . 5 Kinetic 6 | . 3 1 . 2 Secondary . | . . . . . Self-Inflicted Damage 237 | . . 39 . 198 Shots 5 | . . 2 . 3 Rammed 7 | . 3 . 2 2 Targets Rammed 7 | . 3 . 2 2 Kicked . | . . . . . Crushed . | . . . . . Highest Temperature 417 | . 268 221 281 417 Average Temperature 99 | . 34 63 140 107 Received Heat Transfer 1720 | . 189 291 . 1240 Effects 2 | . . . . 2 Shutdowns 1 | . . . . 1 Interference 1 | . . . . 1 Siege Activations . | . . . . . Robots Corrupted 2 | . . . . 2 Combat Hostiles 2 | . . . . 2 Parts Fried 10 | . . 1 . 9 Impact Corruptions 10 | . . . . 10 Robots Melted 2 | . . . . 2 Combat Hostiles 2 | . . . . 2 Parts Melted 9 | . . 2 . 7 Heat Transferred 4469 | . . 100 . 4369 Parts Sabotaged . | . . . . . Parts Stolen . | . . . . . Parts Stripped . | . . . . . Power Chain Reactions 4 | . . . . 4 Alert | -11 -10 -10 -7 -5 ------- Run | Yrd Mat Sub Rec Fac Peak Influence 473 | . 171 . 320 473 Initial 249 | . . . 249 42 Average 137 | . 43 . 218 172 Maximum Alert Level 2 | . . . 1 2 Low Security (%) 66 | 100 100 . 38 54 Level 1 28 | . . . 61 35 Level 2 5 | . . . . 9 Level 3 . | . . . . . Level 4 . | . . . . . Level 5 . | . . . . . High Security . | . . . . . Max Security . | . . . . . Squads Dispatched 9 | . . . . 9 Investigation 3 | . . . . 3 Extermination 4 | . . . . 4 Reinforcement 2 | . . . . 2 Assault . | . . . . . Garrison . | . . . . . Intercept . | . . . . . Searches Triggered . | . . . . . Construction Impeded 1 | . . . . 1 Haulers Reinforced 1 | . . . . 1 Active Scanning Responses . | . . . . . Cargo Convoy Interrupts . | . . . . . Stealth | -11 -10 -10 -7 -5 --------- Run | Yrd Mat Sub Rec Fac Distress Signals 2 | . . . . 2 Communications Jammed . | . . . . . Distress Signals . | . . . . . Times Spotted 102 | . 11 37 3 51 Peak Tracking Total 6 | . 3 6 3 6 Tactical Retreats 6 | . . 4 . 2 Traps | -11 -10 -10 -7 -5 ------- Run | Yrd Mat Sub Rec Fac Traps Triggered 4 | . 2 2 . . Indirectly . | . . . . . Trap Hack Attempts . | . . . . . Triggered . | . . . . . Disarmed . | . . . . . Reprogrammed . | . . . . . Reused . | . . . . . Traps Extracted . | . . . . . Installed . | . . . . . Triggered . | . . . . . Machines | -11 -10 -10 -7 -5 ---------- Run | Yrd Mat Sub Rec Fac Machines Disabled 8 | . . 3 . 5 Max in Single Turn 2 | . . 2 . 2 Machines Repaired . | . . . . . Machines Dismantled . | . . . . . Machines Sabotaged . | . . . . . Overloaded Fab Kills . | . . . . . Hacking | -11 -10 -10 -7 -5 --------- Run | Yrd Mat Sub Rec Fac Machines Accessed 20 | . 7 2 2 9 Terminals 12 | . 5 . 2 5 Fabricators . | . . . . . Repair Stations 4 | . 1 . . 3 Recycling Units 2 | . 1 . . 1 Scanalyzers . | . . . . . Garrison Access . | . . . . . Total Hacks 60 | . 23 12 2 23 Successful 44 | . 16 12 2 14 Failed 16 | . 7 . . 9 Catastrophic 2 | . 1 . . 1 Database Lockouts . | . . . . . Manual 23 | . 12 1 2 8 Terminals 32 | . 18 . 2 12 Fabricators . | . . . . . Repair Stations 14 | . 4 . . 10 Recycling Units 2 | . 1 . . 1 Scanalyzers . | . . . . . Garrison Access . | . . . . . Terminal Hacks 18 | . 5 12 . 1 Record 12 | . 1 11 . . Robot Analysis 2 | . 2 . . . Branch Access Points 1 | . 1 . . . Unreport Threat 1 | . . . . 1 Zone Layout 1 | . 1 . . . Derelict Proto ID Bank 1 | . . 1 . . Fabricator Hacks . | . . . . . Repair Station Hacks 12 | . 4 . . 8 Scan Component 6 | . 2 . . 4 Repair 6 | . 2 . . 4 Recycling Unit Hacks 2 | . 1 . . 1 Process 1 | . . . . 1 Report Inventory 1 | . 1 . . . Scanalyzer . | . . . . . Garrison Access Hacks . | . . . . . Unauthorized Hacks 12 | . 6 . 2 4 Terminals 12 | . 6 . 2 4 Assimilate 1 | . 1 . . . Botnet 11 | . 5 . 2 4 Fabricators . | . . . . . Repair Stations . | . . . . . Recycling Units . | . . . . . Scanalyzers . | . . . . . Garrison Access . | . . . . . Data Cores Recovered . | . . . . . Used . | . . . . . Hacking Detections 14 | . 6 . . 8 Full Trace Events 3 | . . . . 3 Feedback Events . | . . . . . Feedback Blocked . | . . . . . Robot Schematics Acquired . | . . . . . Robots Built . | . . . . . Authchips . | . . . . . Time . | . . . . . Total Robot Build Rating . | . . . . . Part Schematics Acquired . | . . . . . Parts Built . | . . . . . Authchips . | . . . . . Time . | . . . . . Total Part Build Rating . | . . . . . Parts Repaired 5 | . 2 . . 3 Time 258 | . 58 . . 200 Parts Recycled . | . . . . . Recycled Matter 218 | . . . . 218 Retrieved Matter . | . . . . . Retrieved Components . | . . . . . Parts Scanalyzed . | . . . . . Part Schematics Acquired . | . . . . . Parts Damaged . | . . . . . Bothacking | -11 -10 -10 -7 -5 ------------ Run | Yrd Mat Sub Rec Fac Used RIF Installer . | . . . . . Robots Hacked . | . . . . . Non-combat . | . . . . . Combat . | . . . . . Robot Hacks Applied . | . . . . . Relay Couplers Released . | . . . . . Fabnet Peak Effective % . | . . . . . Robots Rewired 3 | . . . 3 . Allies Hacked 1 | . . . . 1 Hacks Repelled . | . . . . . Allies | -11 -10 -10 -7 -5 -------- Run | Yrd Mat Sub Rec Fac Total Allies 3 | . . . 3 . Largest Group 3 | . . . 3 2 Highest-Rated Group 92 | . . . 92 72 Highest-Rated Ally 40 | . . . 40 40 Total Orders . | . . . . . Ally Attacks 9 | . . . 8 1 Total Damage 394 | . . . 323 71 Kills 3 | . . . 3 . Allies Corrupted . | . . . . . Allies Melted . | . . . . . Intel | -11 -10 -10 -7 -5 ------- Run | Yrd Mat Sub Rec Fac Robot Analysis Total 2 | . 2 . . . Derelict Logs Recovered 1 | . . 1 . . Drone Launches . | . . . . . Drone Recoveries . | . . . . . Exploration | -11 -10 -10 -7 -5 ------------- Run | Yrd Mat Sub Rec Fac Turns Passed 6654 | 38 1369 2242 655 2350 Spaces Moved 3329 | 37 705 1408 375 804 Core 20 | 16 . . . 4 Treads 1920 | . 635 711 373 201 Legs 582 | . . . . 582 Wheels 790 | 21 70 697 2 . Hover 10 | . . . . 10 Flight 7 | . . . . 7 Fastest Speed 50 | 50 90 110 110 120 Average Speed 155 | 72 153 140 159 187 Slowest Speed 1150 | 90 160 240 160 1150 Overloaded Moves . | . . . . . Propulsion Burnouts . | . . . . . Robots Hopped . | . . . . . Cave-ins Triggered . | . . . . . Exploration Rate (%) 48 | 4 92 57 69 21 Regions Visited 4 Branch Regions 2 Pre-discovered Areas . | . . . . . Known Exits Taken . | . . . . . Unknown Exits Taken 4 | 1 1 1 1 . Scrap Searched 7 | . . 7 . . Spaces Dug 12 | . . 12 . . Terrain Destroyed 96 | . . 39 . 57 Melee . | . . . . . Projectile 2 | . . . . 2 AOE 94 | . . 39 . 55 Terrain Rammed . | . . . . . Walls Destroyed . | . . . . . Machines Disabled . | . . . . . Actions | -11 -10 -10 -7 -5 --------- Run | Yrd Mat Sub Rec Fac Total 4314 | 48 924 1577 426 1339 Wait 473 | . 145 69 10 249 Move 3325 | 36 704 1407 374 804 Hop . | . . . . . Pick Up 66 | 6 21 14 2 23 Fast Attach 24 | . 2 7 2 13 Attach 33 | 6 1 5 . 21 Detach 1 | . . . . 1 Swap 21 | . 5 4 3 9 Drop 50 | . 7 15 4 24 Fire 236 | . 36 31 . 169 Melee 44 | . . 25 . 19 Ram . | . . . . . Kick . | . . . . . Crush 7 | . 3 . 2 2 Escape Stasis . | . . . . . Rewire 26 | . . . 26 . Trap . | . . . . . Miscellaneous 8 | . . . 3 5 Route ------- -11/Scrapyard -10/Materials (discovered 5 exits: [*Mat x3] / *Min / *Sub) -10/Subcaves (discovered 2 exits: [*Mat] / *Rec) -7/Recycling -5/Factory History --------- Turn | Location | Event 10 | -11/Scrapyard | Discovered new exit (range 14) 39 | -11/Scrapyard | Entered Materials 96 | -10/Materials | Discovered new exit (range 4) 318 | -10/Materials | Build established: Mutant 460 | -10/Materials | Repaired Imp. Treads 487 | -10/Materials | Repaired Lgt. Ion Engine 555 | -10/Materials | Discovered new exit (range 11) 555 | -10/Materials | Identified exit to Mines 910 | -10/Materials | Discovered new exit (range 10) 1096 | -10/Materials | Discovered new exit (range 16) 1393 | -10/Materials | Discovered new exit (range 10) 1408 | -10/Materials | Entered Subcaves 1415 | -10/Subcaves | Learned 4 Materials zone layouts 1747 | -10/Subcaves | Shifting Twisted Machinery released Sub. Monowheel 1752 | -10/Subcaves | Shifting Twisted Machinery released Flamer 2387 | -10/Subcaves | Discovered new exit (range 9) 2456 | -10/Subcaves | Shifting Twisted Machinery released Shrapnel Trap 2463 | -10/Subcaves | Shifting Twisted Machinery released Spk. Treads 2620 | -10/Subcaves | Core integrity fell below 50% 2657 | -10/Subcaves | Lost 3 parts (1p1n1w) 2812 | -10/Subcaves | A swath of the cavern ceiling suddenly collapsed 3235 | -10/Subcaves | Visited 4L-MR0's lab 3254 | -10/Subcaves | Found Rainbow Chip 3256 | -10/Subcaves | Attached Rainbow Chip, gained temporary slots: Power, Propulsion, Utility, Weapon 3514 | -10/Subcaves | Visited Clippyterm 3552 | -10/Subcaves | Build established: Gunner 3584 | -10/Subcaves | Core integrity fell below 20% 3608 | -10/Subcaves | Discovered new exit (range 10) 3650 | -10/Subcaves | Entered Recycling 3651 | -7/Recycling | Joined Warlord attack on 0b10 via Recycling 3657 | -7/Recycling | Found Scrap Engine 3960 | -7/Recycling | Build established: Derelict-Mutant 4087 | -7/Recycling | Discovered new exit (range 16) 4305 | -7/Recycling | Entered Factory 4305 | -5/Factory | Accompanied by 2 allies 4305 | -5/Factory | Evolved 10 slots: Power x1, Propulsion x2, Utility x7 4322 | -5/Factory | Spotted B-75 Beast 4365 | -5/Factory | Lost 11 allies 4517 | -5/Factory | Repaired Imp. Coolant Injector 4562 | -5/Factory | Repaired Mak. System Restoration Module 5338 | -5/Factory | Build established: Scavenger-Mutant 5402 | -5/Factory | P-70 Sage assimilated allied *Probably doesn't do anything 5810 | -5/Factory | Lost 3 parts (1u2w) 5839 | -5/Factory | Build established: Mutant 5990 | -5/Factory | Repaired Enh. Armored Leg 6282 | -5/Factory | Core integrity fell below 50% 6340 | -5/Factory | Lost 16 parts (3p5n5u3w) 6405 | -5/Factory | Lost 4 parts (1p1n1u1w) 6467 | -5/Factory | Core integrity fell below 20% 6609 | -5/Factory | System corruption reached 10% 6655 | -5/Factory | Destroyed by exploding Power Conduit Last Messages --------------- 06624_ P-70 Sage resets R-10 Processor, system corruption cleaned. 06625_ Imp. Targeting Computer destroyed. 06628_ R-10 Processor destroyed. 06635_ R-10 Processor collects Imp. Sensor Array. 06636_ R-10 Processor collects Com. Wheel. 06640_ ALERT: Cargo convoy en route, clear transfer corridor. 06640_ R-10 Processor collects Hpw. Tractor Beam. 06648_ K-01 Serf cleans the Power Conduit. 06649_ VW,HBKI6HC>QXV77EYUTP7/5TO 06655_ P-70 Sage knocked back. 06655_ Power Conduit explodes. 06655_ Imp. Propulsion Shielding destroyed. 06655_ Spk. Treads destroyed. 06655_ P-70 Sage destroyed. 06655_ Power Conduit explodes. 06655_ K-01 Serf destroyed. Map ----- +----------------------------------------------------+ | ?????????????????????????????????????????????????? | | ?????????????????????????????????????????????????? | | ?????????????????????????????????????????????????? | | ?????????????????????????????????????????????????? | | ?????????????????????????????????????????????????? | | ?????????????????????????????????????????????????? | | ?????????????????????????????????????????????????? | | ?????????????????????????????????????????????????? | | ?????????????????????????????????????????????????? | | ?????????????????????????????????????????????????? | | ?????????????????????????????????????????????????? | | ?????????????????????????????????????????????????? | | ?????????????????????????????????????????????????? | | ????????????????????##############???????????????? | | ????????????????????# #???????????????? | | ????????????????????# #???????????????? | | ????????????????????# #???????????????? | | ????????????????????# #???????????????? | | ????????????????????# +???????????????? | | ???????????????????## #???????????????? | | ??????????????????##; ;???????????????? | | ??????????????????# ; ;???????????????? | | ??????????????????# ;???????????????? | | ??????????????????# ;???????????????? | | ?????????? ] # ;???????????????? | | ?????????? ; @ ;???????????????? | | ?????????????"" #; ;#############??? | | ??????????????????# % ^% | | ??????????????????# R % | | ??????????????????# % | | ??????????????????+ k ^ | | ??????????????????# ^ | | ??????????????????# k ###+####################/# | | ??????????????????# C # #??????? | | ??????????????????# # """"""" #??????? | | ??????????????????# # """"""" #??????? | | ??????????????????# # """"""" #??????? | | ??????????????????# ?# """"""" #??????? | | ??????????????????# # ! #??????? | | ????????????????#?# # ! #?? ???? | | ??????????????##T # ^#########+#####+###?? ???? | | ?????????????? #???# #???? ???? | | ????????????? #???# #???? ???? | | ?????????????? ##### #???? ???? | | ?????????????????? #???? ???? | | ?????????????????????? #????+???? | | ?????????????????????????#! """"" ##### #??? | | ???????????????????####### """"" #??? | | ???????????????????# # """ #??? | | ???????????????????# # #??? | +----------------------------------------------------+ Best States ------------- Heat Dissipation 54 Coolant Potential 80 Energy Generation 34 Energy Capacity 735 Matter Stores 300 Matter Capacity 300 Sight Range 16 Terrain Scan Density 10 Armor Coverage 900 Resistance: KI 20 Resistance: TH 45 Resistance: EX 20 Resistance: EM 20 Resistance: I 20 Resistance: S 20 Resistance: P 20 Propulsion Shielding 66 Weapon Cycling 20 Phase Shifting 5 Evasion (%) 55 Targeting Accuracy 12 Target Analysis 6 Recoil Reduction 6 Offensive Hacking 10 Item Schematics ----------------- None Robot Schematics ------------------ None Fabricated ------------ Nothing Alien Tech Used ----------------- None Achievements -------------- None Challenges ------------ None Game ------ Seed DeepGrapheneBank Manual? 0 Play Time 01:08:35 Cumulative 54.1 hours Start 2024.07.21 @ 08:42:02 End 2024.07.21 @ 09:53:48 Sessions 1 Manual Loads 0 Difficulty Adventurer Special Mode None Game No. 82 Rogue 0 Adventurer 82 Explorer 0 Win Type - Total 0 Types 0/0/0/0/0/0/0/0/0 Lore% 42 Gallery% 40 Achievement% 31 Wizard Run 0 Options --------- Layout 2 ASCII 0 Keyboard 0 Movement Mouse Keybinds 0 Fullscreen 2 Font 48/Smallcaps Map View 50x44 Zoom Use 29% Tactical HUD 1 Map Filters NONE Filters NONE Steam 1 RUN: bcd95392-31ba-4b57-a75d-3e53d08ed1ed